[Event "Titled Tuesday Blitz July 20 2021"]
[White "Molina, Roberto Junio Brito"]
[Black "Ezat, Mohamed"]
[WhiteFideId "2109450"]
[BlackFideId "10600906"]
[WhiteElo "2402"]
[BlackElo "2414"]
[Result "1-0"]
[Round "08"]
[TimeControl "180+1"]
[Date "2021.07.21"]
[WhiteClock "0:00:13"]
[BlackClock "0:00:02"]

1. d4 {[%clk 0:03:00]}  Nf6 {[%clk 0:02:56]} 2. c4 {[%clk 0:03:00]}  g6 {[%clk 0:02:54]} 3. Nc3 {[%clk 0:03:00]}  Bg7 {[%clk 0:02:55]} 4. e4 {[%clk 0:02:59]}  d6 {[%clk 0:02:55]} 5. Nf3 {[%clk 0:02:58]}  O-O {[%clk 0:02:56]} 6. Be2 {[%clk 0:02:55]}  e5 {[%clk 0:02:56]} 7. O-O {[%clk 0:02:52]}  Nc6 {[%clk 0:02:56]} 8. d5 {[%clk 0:02:52]}  Ne7 {[%clk 0:02:56]} 9. b4 {[%clk 0:02:24]}  c6 {[%clk 0:02:53]} 10. Ba3 {[%clk 0:02:23]}  a5 {[%clk 0:02:51]} 11. bxa5 {[%clk 0:02:19]}  c5 {[%clk 0:02:50]} 12. Nd2 {[%clk 0:02:16]}  Qxa5 {[%clk 0:02:50]} 13. Bb2 {[%clk 0:02:16]}  Ne8 {[%clk 0:02:48]} 14. a4 {[%clk 0:02:15]}  f5 {[%clk 0:02:48]} 15. Nb5 {[%clk 0:02:13]}  Qd8 {[%clk 0:02:47]} 16. Bc3 {[%clk 0:02:12]}  Nf6 {[%clk 0:02:46]} 17. f3 {[%clk 0:02:11]}  f4 {[%clk 0:02:46]} 18. g4 {[%clk 0:02:05]}  fxg3 {[%clk 0:02:30]} 19. hxg3 {[%clk 0:02:05]}  Nh5 {[%clk 0:02:30]} 20. Kg2 {[%clk 0:02:04]}  Nxg3 {[%clk 0:02:15]} 21. Kxg3 {[%clk 0:02:03]}  Nf5+ {[%clk 0:02:11]} 22. exf5 {[%clk 0:01:55]}  Qg5+ {[%clk 0:02:09]} 23. Kf2 {[%clk 0:01:51]}  Qh4+ {[%clk 0:02:08]} 24. Ke3 {[%clk 0:01:38]}  Bxf5 {[%clk 0:01:10]} 25. Ne4 {[%clk 0:01:35]}  Qh3 {[%clk 0:01:10]} 26. Rh1 {[%clk 0:00:51]}  Qg2 {[%clk 0:00:36]} 27. Qg1 {[%clk 0:00:50]}  Qxg1+ {[%clk 0:00:35]} 28. Rhxg1 {[%clk 0:00:44]}  Bh6+ {[%clk 0:00:33]} 29. Kd3 {[%clk 0:00:44]}  Rad8 {[%clk 0:00:32]} 30. Raf1 {[%clk 0:00:39]}  Bf4 {[%clk 0:00:31]} 31. Bd2 {[%clk 0:00:37]}  Bh2 {[%clk 0:00:30]} 32. Rg2 {[%clk 0:00:36]}  Bh3 {[%clk 0:00:25]} 33. Rxh2 {[%clk 0:00:33]}  Bxf1 {[%clk 0:00:25]} 34. Bxf1 {[%clk 0:00:31]}  Rxf3+ {[%clk 0:00:26]} 35. Ke2 {[%clk 0:00:31]}  Rb3 {[%clk 0:00:23]} 36. Bh3 {[%clk 0:00:27]}  Kg7 {[%clk 0:00:22]} 37. Be6 {[%clk 0:00:25]}  h5 {[%clk 0:00:22]} 38. Nexd6 {[%clk 0:00:22]}  Rf8 {[%clk 0:00:20]} 39. Ne4 {[%clk 0:00:20]}  Rb2 {[%clk 0:00:18]} 40. Nxc5 {[%clk 0:00:20]}  Rf4 {[%clk 0:00:12]} 41. d6 {[%clk 0:00:18]}  Kf6 {[%clk 0:00:05]} 42. Bd5 {[%clk 0:00:18]}  e4 {[%clk 0:00:04]} 43. Nxe4+ {[%clk 0:00:18]}  Ke5 {[%clk 0:00:04]} 44. Nec3 {[%clk 0:00:13]}  Rf8 {[%clk 0:00:04]} 45. Kd3 {[%clk 0:00:13]}  Rf3+ {[%clk 0:00:02]} 46. Bxf3 {[%clk 0:00:12]}  Kf5 {[%clk 0:00:02]} 47. Bxb7 {[%clk 0:00:13]} 1-0


[Site "https://www.chess.com"]

[Event "Titled Tuesday Blitz July 20 2021"]
[White "Onyshchuk, Volodymyr"]
[Black "Trent, Lawrence"]
[WhiteFideId "14114038"]
[BlackFideId "408638"]
[WhiteElo "2603"]
[BlackElo "2474"]
[Result "1/2-1/2"]
[Round "08"]
[TimeControl "180+1"]
[Date "2021.07.20"]
[WhiteClock "0:00:07"]
[BlackClock "0:00:08"]

1. Nf3 {[%clk 0:02:15]}  g6 {[%clk 0:02:56]} 2. g3 {[%clk 0:02:14]}  Bg7 {[%clk 0:02:56]} 3. Bg2 {[%clk 0:02:14]}  e5 {[%clk 0:02:57]} 4. O-O {[%clk 0:02:13]}  Ne7 {[%clk 0:02:57]} 5. c4 {[%clk 0:02:06]}  O-O {[%clk 0:02:56]} 6. Nc3 {[%clk 0:02:06]}  Nbc6 {[%clk 0:02:52]} 7. Rb1 {[%clk 0:02:03]}  a5 {[%clk 0:02:48]} 8. a3 {[%clk 0:02:02]}  d6 {[%clk 0:02:49]} 9. b4 {[%clk 0:02:01]}  axb4 {[%clk 0:02:49]} 10. axb4 {[%clk 0:02:01]}  Nd4 {[%clk 0:02:49]} 11. d3 {[%clk 0:01:52]}  Nxf3+ {[%clk 0:02:42]} 12. Bxf3 {[%clk 0:01:51]}  c6 {[%clk 0:02:31]} 13. Bb2 {[%clk 0:01:48]}  d5 {[%clk 0:02:29]} 14. cxd5 {[%clk 0:01:45]}  cxd5 {[%clk 0:02:29]} 15. Ra1 {[%clk 0:01:46]}  Be6 {[%clk 0:02:29]} 16. Rxa8 {[%clk 0:01:40]}  Qxa8 {[%clk 0:02:28]} 17. Nb5 {[%clk 0:01:40]}  Qb8 {[%clk 0:02:20]} 18. Bg2 {[%clk 0:01:31]}  Nc6 {[%clk 0:02:18]} 19. Qb3 {[%clk 0:01:26]}  Rc8 {[%clk 0:02:15]} 20. Rc1 {[%clk 0:01:25]}  Rd8 {[%clk 0:02:10]} 21. Qa4 {[%clk 0:01:21]}  h6 {[%clk 0:02:07]} 22. Bc3 {[%clk 0:01:11]}  Bg4 {[%clk 0:02:03]} 23. Kf1 {[%clk 0:01:07]}  Qc8 {[%clk 0:01:56]} 24. Bd2 {[%clk 0:01:04]}  Qf5 {[%clk 0:01:44]} 25. Be3 {[%clk 0:00:36]}  Bh3 {[%clk 0:01:14]} 26. Qb3 {[%clk 0:00:34]}  d4 {[%clk 0:01:02]} 27. Bd2 {[%clk 0:00:32]}  e4 {[%clk 0:01:02]} 28. Bxh3 {[%clk 0:00:24]}  Qxh3+ {[%clk 0:01:02]} 29. Kg1 {[%clk 0:00:24]}  Ne5 {[%clk 0:00:36]} 30. dxe4 {[%clk 0:00:11]}  Ng4 {[%clk 0:00:34]} 31. Qf3 {[%clk 0:00:09]}  Qxh2+ {[%clk 0:00:31]} 32. Kf1 {[%clk 0:00:09]}  Qh3+ {[%clk 0:00:28]} 33. Qg2 {[%clk 0:00:09]}  Qh5 {[%clk 0:00:28]} 34. f3 {[%clk 0:00:09]}  Qxb5 {[%clk 0:00:23]} 35. fxg4 {[%clk 0:00:09]}  d3 {[%clk 0:00:22]} 36. e3 {[%clk 0:00:09]}  Qe5 {[%clk 0:00:16]} 37. Qf3 {[%clk 0:00:07]}  Qb2 {[%clk 0:00:15]} 38. Qf2 {[%clk 0:00:06]}  Qb3 {[%clk 0:00:14]} 39. Rc7 {[%clk 0:00:05]}  Rf8 {[%clk 0:00:12]} 40. Kg2 {[%clk 0:00:05]}  Qe6 {[%clk 0:00:11]} 41. Qf3 {[%clk 0:00:04]}  b5 {[%clk 0:00:11]} 42. Rc5 {[%clk 0:00:03]}  Rb8 {[%clk 0:00:10]} 43. e5 {[%clk 0:00:02]}  Bf8 {[%clk 0:00:10]} 44. Rd5 {[%clk 0:00:01]}  Re8 {[%clk 0:00:07]} 45. Rxd3 {[%clk 0:00:01]}  Qxe5 {[%clk 0:00:07]} 46. Bc3 {[%clk 0:00:02]}  Qe4 {[%clk 0:00:07]} 47. Qxe4 {[%clk 0:00:02]}  Rxe4 {[%clk 0:00:08]} 48. Bd4 {[%clk 0:00:01]}  Rxg4 {[%clk 0:00:07]} 49. Kf3 {[%clk 0:00:02]}  h5 {[%clk 0:00:08]} 50. Rc3 {[%clk 0:00:02]}  Rg5 {[%clk 0:00:06]} 51. Rc8 {[%clk 0:00:02]}  Rf5+ {[%clk 0:00:06]} 52. Ke2 {[%clk 0:00:02]}  f6 {[%clk 0:00:07]} 53. Bc5 {[%clk 0:00:02]}  Kf7 {[%clk 0:00:04]} 54. Bxf8 {[%clk 0:00:02]}  Ke6 {[%clk 0:00:05]} 55. Bc5 {[%clk 0:00:02]}  Rg5 {[%clk 0:00:05]} 56. Re8+ {[%clk 0:00:02]}  Kd7 {[%clk 0:00:05]} 57. Re7+ {[%clk 0:00:02]}  Kc6 {[%clk 0:00:05]} 58. Re6+ {[%clk 0:00:02]}  Kd5 {[%clk 0:00:05]} 59. Rxf6 {[%clk 0:00:03]}  Rxg3 {[%clk 0:00:05]} 60. Kd3 {[%clk 0:00:03]}  h4 {[%clk 0:00:05]} 61. Rf8 {[%clk 0:00:04]}  h3 {[%clk 0:00:06]} 62. Rh8 {[%clk 0:00:04]}  g5 {[%clk 0:00:06]} 63. Rh6 {[%clk 0:00:04]}  g4 {[%clk 0:00:06]} 64. Rh5+ {[%clk 0:00:04]}  Kc6 {[%clk 0:00:06]} 65. Ke4 {[%clk 0:00:04]}  Rg2 {[%clk 0:00:06]} 66. Rh6+ {[%clk 0:00:05]}  Kd7 {[%clk 0:00:06]} 67. Kf4 {[%clk 0:00:05]}  h2 {[%clk 0:00:06]} 68. e4 {[%clk 0:00:05]}  g3 {[%clk 0:00:06]} 69. Ke5 {[%clk 0:00:05]}  Rg1 {[%clk 0:00:06]} 70. Rh7+ {[%clk 0:00:05]}  Kc6 {[%clk 0:00:06]} 71. Rh6+ {[%clk 0:00:06]}  Kc7 {[%clk 0:00:06]} 72. Rh7+ {[%clk 0:00:06]}  Kc8 {[%clk 0:00:06]} 73. Rh8+ {[%clk 0:00:07]}  Kb7 {[%clk 0:00:06]} 74. Rh7+ {[%clk 0:00:07]}  Kc8 {[%clk 0:00:07]} 75. Rh8+ {[%clk 0:00:07]}  Kc7 {[%clk 0:00:07]} 76. Rh7+ {[%clk 0:00:07]}  Kc8 {[%clk 0:00:08]} 1/2-1/2


[Site "https://www.chess.com"]

[Event "Titled Tuesday Blitz July 20 2021"]
[White "Ozen, Bahadir"]
[Black "Aldokhin, Ivan"]
[WhiteFideId "6337058"]
[BlackFideId "24115720"]
[WhiteElo "2503"]
[BlackElo "2306"]
[Result "1-0"]
[Round "08"]
[TimeControl "180+1"]
[Date "2021.07.20"]
[WhiteClock "0:00:08"]
[BlackClock "0:00:03"]

1. Nf3 {[%clk 0:03:00]}  Nf6 {[%clk 0:02:59]} 2. g3 {[%clk 0:03:00]}  g6 {[%clk 0:03:00]} 3. Bg2 {[%clk 0:03:00]}  Bg7 {[%clk 0:03:01]} 4. O-O {[%clk 0:03:01]}  d6 {[%clk 0:03:02]} 5. d4 {[%clk 0:03:01]}  O-O {[%clk 0:03:02]} 6. Re1 {[%clk 0:03:02]}  Nc6 {[%clk 0:03:01]} 7. d5 {[%clk 0:02:57]}  Nb4 {[%clk 0:03:01]} 8. Nc3 {[%clk 0:02:56]}  e5 {[%clk 0:02:56]} 9. dxe6 {[%clk 0:02:47]}  fxe6 {[%clk 0:02:55]} 10. e4 {[%clk 0:02:21]}  e5 {[%clk 0:02:54]} 11. h3 {[%clk 0:02:05]}  h6 {[%clk 0:02:47]} 12. Be3 {[%clk 0:02:03]}  g5 {[%clk 0:02:42]} 13. Nd2 {[%clk 0:01:56]}  g4 {[%clk 0:02:34]} 14. h4 {[%clk 0:01:54]}  Nh5 {[%clk 0:02:28]} 15. Nf1 {[%clk 0:01:42]}  Nc6 {[%clk 0:02:10]} 16. Nd5 {[%clk 0:01:21]}  Nd4 {[%clk 0:02:04]} 17. Nh2 {[%clk 0:01:21]}  c6 {[%clk 0:01:33]} 18. Nb4 {[%clk 0:01:20]}  Nf6 {[%clk 0:01:17]} 19. c3 {[%clk 0:01:17]}  Nb5 {[%clk 0:00:55]} 20. Qd2 {[%clk 0:01:16]}  Kh7 {[%clk 0:00:46]} 21. a4 {[%clk 0:01:17]}  Nc7 {[%clk 0:00:45]} 22. Rad1 {[%clk 0:01:17]}  Nce8 {[%clk 0:00:44]} 23. Nc2 {[%clk 0:01:04]}  Qe7 {[%clk 0:00:41]} 24. c4 {[%clk 0:00:52]}  Be6 {[%clk 0:00:31]} 25. b3 {[%clk 0:00:51]}  c5 {[%clk 0:00:21]} 26. Qd3 {[%clk 0:00:45]}  b6 {[%clk 0:00:17]} 27. Bc1 {[%clk 0:00:45]}  Nh5 {[%clk 0:00:11]} 28. Ne3 {[%clk 0:00:43]}  Qd7 {[%clk 0:00:08]} 29. Nf5 {[%clk 0:00:37]}  Nhf6 {[%clk 0:00:03]} 30. Nxd6 {[%clk 0:00:36]}  Nxd6 {[%clk 0:00:04]} 31. Qxd6 {[%clk 0:00:36]}  Rad8 {[%clk 0:00:04]} 32. Qxd7 {[%clk 0:00:33]}  Rxd7 {[%clk 0:00:04]} 33. Nf1 {[%clk 0:00:22]}  Rfd8 {[%clk 0:00:04]} 34. Rxd7 {[%clk 0:00:22]}  Rxd7 {[%clk 0:00:04]} 35. Ne3 {[%clk 0:00:23]}  Rd3 {[%clk 0:00:04]} 36. Nd5 {[%clk 0:00:09]}  Kg6 {[%clk 0:00:04]} 37. b4 {[%clk 0:00:05]}  cxb4 {[%clk 0:00:03]} 38. Nxb4 {[%clk 0:00:05]}  Rb3 {[%clk 0:00:03]} 39. Nd5 {[%clk 0:00:05]}  Kf7 {[%clk 0:00:04]} 40. Be3 {[%clk 0:00:05]}  Nd7 {[%clk 0:00:04]} 41. a5 {[%clk 0:00:04]}  bxa5 {[%clk 0:00:04]} 42. Ra1 {[%clk 0:00:05]}  Nb6 {[%clk 0:00:02]} 43. Rxa5 {[%clk 0:00:04]}  Nxc4 {[%clk 0:00:02]} 44. Rxa7+ {[%clk 0:00:05]}  Kg6 {[%clk 0:00:03]} 45. Ra6 {[%clk 0:00:04]}  Kf7 {[%clk 0:00:03]} 46. Bf1 {[%clk 0:00:04]}  Nxe3 {[%clk 0:00:02]} 47. Nxe3 {[%clk 0:00:04]}  Rb2 {[%clk 0:00:03]} 48. Ra7+ {[%clk 0:00:03]}  Kg6 {[%clk 0:00:03]} 49. Ra6 {[%clk 0:00:04]}  Kf7 {[%clk 0:00:03]} 50. Bc4 {[%clk 0:00:04]}  Bxc4 {[%clk 0:00:03]} 51. Nxc4 {[%clk 0:00:05]}  Rc2 {[%clk 0:00:03]} 52. Ne3 {[%clk 0:00:05]}  Bf8 {[%clk 0:00:03]} 53. Nxc2 {[%clk 0:00:05]}  Bc5 {[%clk 0:00:03]} 54. Kf1 {[%clk 0:00:06]}  h5 {[%clk 0:00:02]} 55. Ke2 {[%clk 0:00:06]}  Ke7 {[%clk 0:00:03]} 56. Rc6 {[%clk 0:00:07]}  Bd6 {[%clk 0:00:02]} 57. Ne3 {[%clk 0:00:07]}  Bb8 {[%clk 0:00:02]} 58. Ra6 {[%clk 0:00:07]}  Kf7 {[%clk 0:00:03]} 59. Nd5 {[%clk 0:00:08]} 1-0


[Site "https://www.chess.com"]

[Event "Titled Tuesday Blitz July 20 2021"]
[White "Pacheco Lugo, Alejandro Jose"]
[Black "Maltsevskaya, Aleksandra"]
[WhiteFideId "3903745"]
[BlackFideId "24174041"]
[WhiteElo "2125"]
[BlackElo "2225"]
[Result "0-1"]
[Round "08"]
[TimeControl "180+1"]
[Date "2021.07.21"]
[WhiteClock "0:00:22"]
[BlackClock "0:01:46"]

1. e4 {[%clk 0:03:00]}  c5 {[%clk 0:02:57]} 2. Nf3 {[%clk 0:03:01]}  e6 {[%clk 0:02:58]} 3. d4 {[%clk 0:03:01]}  cxd4 {[%clk 0:02:59]} 4. Nxd4 {[%clk 0:03:01]}  Nf6 {[%clk 0:02:59]} 5. Nc3 {[%clk 0:03:02]}  Nc6 {[%clk 0:03:00]} 6. Ndb5 {[%clk 0:03:01]}  Bc5 {[%clk 0:02:59]} 7. Bf4 {[%clk 0:03:00]}  e5 {[%clk 0:02:56]} 8. Bg5 {[%clk 0:02:48]}  O-O {[%clk 0:02:53]} 9. Bxf6 {[%clk 0:02:48]}  Qxf6 {[%clk 0:02:54]} 10. Qd2 {[%clk 0:02:44]}  a6 {[%clk 0:02:52]} 11. Nd5 {[%clk 0:02:44]}  Qg6 {[%clk 0:02:50]} 12. Nbc3 {[%clk 0:02:35]}  b5 {[%clk 0:02:50]} 13. f3 {[%clk 0:02:30]}  d6 {[%clk 0:02:45]} 14. a4 {[%clk 0:02:24]}  Be6 {[%clk 0:02:43]} 15. Bd3 {[%clk 0:01:59]}  b4 {[%clk 0:02:41]} 16. Nd1 {[%clk 0:01:58]}  Qh5 {[%clk 0:02:33]} 17. N1e3 {[%clk 0:01:51]}  Nd4 {[%clk 0:02:30]} 18. Bc4 {[%clk 0:01:34]}  Kh8 {[%clk 0:02:26]} 19. O-O {[%clk 0:01:29]}  Bxd5 {[%clk 0:02:23]} 20. Bxd5 {[%clk 0:01:29]}  f5 {[%clk 0:02:23]} 21. c3 {[%clk 0:01:23]}  f4 {[%clk 0:02:14]} 22. cxd4 {[%clk 0:01:13]}  Bxd4 {[%clk 0:02:07]} 23. Kh1 {[%clk 0:01:08]}  Bxe3 {[%clk 0:02:06]} 24. Qe1 {[%clk 0:01:04]}  Rf6 {[%clk 0:02:03]} 25. g3 {[%clk 0:00:59]}  Rh6 {[%clk 0:01:59]} 26. Rf2 {[%clk 0:00:45]}  fxg3 {[%clk 0:01:51]} 27. Qxe3 {[%clk 0:00:21]}  gxf2 {[%clk 0:01:49]} 28. Qxf2 {[%clk 0:00:22]}  Rf8 {[%clk 0:01:48]} 29. Rf1 {[%clk 0:00:22]}  Rxf3 {[%clk 0:01:46]} 0-1


[Site "https://www.chess.com"]

[Event "Titled Tuesday Blitz July 20 2021"]
[White "Porter, Ryan W"]
[Black "Gurevich, Dmitry"]
[WhiteFideId "2011239"]
[BlackFideId "2000407"]
[WhiteElo "2414"]
[BlackElo "2506"]
[Result "0-1"]
[Round "08"]
[TimeControl "180+1"]
[Date "2021.07.21"]
[WhiteClock "0:00:10"]
[BlackClock "0:00:31"]

1. c4 {[%clk 0:03:00]}  e6 {[%clk 0:02:56]} 2. g3 {[%clk 0:03:00]}  d5 {[%clk 0:02:55]} 3. Bg2 {[%clk 0:03:00]}  Nf6 {[%clk 0:02:54]} 4. Nf3 {[%clk 0:03:01]}  Be7 {[%clk 0:02:52]} 5. b3 {[%clk 0:03:01]}  O-O {[%clk 0:02:51]} 6. O-O {[%clk 0:03:01]}  c5 {[%clk 0:02:48]} 7. cxd5 {[%clk 0:02:58]}  Nxd5 {[%clk 0:02:46]} 8. Bb2 {[%clk 0:02:55]}  Nc6 {[%clk 0:02:43]} 9. Na3 {[%clk 0:02:40]}  Bf6 {[%clk 0:02:33]} 10. Qc1 {[%clk 0:02:37]}  b6 {[%clk 0:02:31]} 11. Nc4 {[%clk 0:02:34]}  Bb7 {[%clk 0:02:26]} 12. a3 {[%clk 0:02:25]}  Rc8 {[%clk 0:02:22]} 13. Rd1 {[%clk 0:02:21]}  Nd4 {[%clk 0:02:21]} 14. Nxd4 {[%clk 0:02:02]}  cxd4 {[%clk 0:02:21]} 15. a4 {[%clk 0:02:01]}  Ba6 {[%clk 0:02:05]} 16. Qb1 {[%clk 0:01:53]}  Bxc4 {[%clk 0:02:00]} 17. bxc4 {[%clk 0:01:54]}  Rxc4 {[%clk 0:01:59]} 18. Qd3 {[%clk 0:01:44]}  Rc8 {[%clk 0:01:41]} 19. Ba3 {[%clk 0:01:40]}  Re8 {[%clk 0:01:37]} 20. Rdc1 {[%clk 0:01:39]}  Qd7 {[%clk 0:01:37]} 21. Qa6 {[%clk 0:01:30]}  d3 {[%clk 0:01:30]} 22. Rab1 {[%clk 0:01:21]}  dxe2 {[%clk 0:01:25]} 23. Qxe2 {[%clk 0:01:13]}  h6 {[%clk 0:01:20]} 24. Qb5 {[%clk 0:01:06]}  Qxb5 {[%clk 0:01:17]} 25. axb5 {[%clk 0:01:05]}  Red8 {[%clk 0:01:08]} 26. Kf1 {[%clk 0:01:00]}  Ne7 {[%clk 0:01:05]} 27. Ke2 {[%clk 0:00:57]}  Nf5 {[%clk 0:01:05]} 28. Rxc8 {[%clk 0:00:47]}  Rxc8 {[%clk 0:01:04]} 29. Bb2 {[%clk 0:00:42]}  Bxb2 {[%clk 0:01:03]} 30. Rxb2 {[%clk 0:00:42]}  Rc7 {[%clk 0:01:03]} 31. Kd3 {[%clk 0:00:30]}  Kf8 {[%clk 0:01:02]} 32. g4 {[%clk 0:00:20]}  Nd6 {[%clk 0:00:58]} 33. Bc6 {[%clk 0:00:20]}  Ke7 {[%clk 0:00:45]} 34. f4 {[%clk 0:00:19]}  a6 {[%clk 0:00:38]} 35. h3 {[%clk 0:00:16]}  axb5 {[%clk 0:00:36]} 36. Bxb5 {[%clk 0:00:17]}  Rc5 {[%clk 0:00:34]} 37. Ba6 {[%clk 0:00:15]}  b5 {[%clk 0:00:33]} 38. Kd4 {[%clk 0:00:12]}  Rd5+ {[%clk 0:00:32]} 39. Ke3 {[%clk 0:00:10]}  Nc4+ {[%clk 0:00:31]} 0-1


[Site "https://www.chess.com"]

[Event "Titled Tuesday Blitz July 20 2021"]
[White "Prraneeth Vuppala"]
[Black "Wieczorek, Zbigniew"]
[WhiteFideId "46622373"]
[BlackFideId "1102001"]
[WhiteElo "1759"]
[BlackElo "2302"]
[Result "1-0"]
[Round "08"]
[TimeControl "180+1"]
[Date "2021.07.21"]
[WhiteClock "0:00:18"]
[BlackClock "0:00:10"]

1. d4 {[%clk 0:03:00]}  Nf6 {[%clk 0:02:57]} 2. c4 {[%clk 0:03:00]}  g6 {[%clk 0:02:55]} 3. Nc3 {[%clk 0:02:59]}  Bg7 {[%clk 0:02:55]} 4. e4 {[%clk 0:03:00]}  d6 {[%clk 0:02:56]} 5. h3 {[%clk 0:03:00]}  O-O {[%clk 0:02:53]} 6. Be3 {[%clk 0:03:00]}  b6 {[%clk 0:02:52]} 7. Nf3 {[%clk 0:02:57]}  c5 {[%clk 0:02:51]} 8. Qd2 {[%clk 0:02:49]}  Nc6 {[%clk 0:02:50]} 9. O-O-O {[%clk 0:02:40]}  cxd4 {[%clk 0:02:29]} 10. Nxd4 {[%clk 0:02:41]}  Bb7 {[%clk 0:02:29]} 11. f3 {[%clk 0:02:27]}  Rc8 {[%clk 0:02:28]} 12. b3 {[%clk 0:02:27]}  a6 {[%clk 0:02:27]} 13. Kb2 {[%clk 0:02:26]}  Nd7 {[%clk 0:02:22]} 14. Nxc6 {[%clk 0:02:15]}  Bxc6 {[%clk 0:02:20]} 15. Bh6 {[%clk 0:02:15]}  Bh8 {[%clk 0:02:16]} 16. Bxf8 {[%clk 0:02:14]}  Qxf8 {[%clk 0:02:10]} 17. Kb1 {[%clk 0:02:05]}  Qg7 {[%clk 0:02:08]} 18. Rc1 {[%clk 0:02:03]}  b5 {[%clk 0:02:03]} 19. cxb5 {[%clk 0:01:56]}  axb5 {[%clk 0:02:03]} 20. Qb2 {[%clk 0:01:49]}  Qh6 {[%clk 0:01:30]} 21. b4 {[%clk 0:01:44]}  Nb6 {[%clk 0:01:25]} 22. Qb3 {[%clk 0:01:41]}  Qg7 {[%clk 0:01:21]} 23. Qb2 {[%clk 0:01:09]}  Qh6 {[%clk 0:01:11]} 24. Bd3 {[%clk 0:00:54]}  Na4 {[%clk 0:00:44]} 25. Nxa4 {[%clk 0:00:53]}  Bxb2 {[%clk 0:00:43]} 26. Nxb2 {[%clk 0:00:54]}  Qg5 {[%clk 0:00:35]} 27. Rc2 {[%clk 0:00:53]}  Bd7 {[%clk 0:00:33]} 28. Rhc1 {[%clk 0:00:51]}  Rxc2 {[%clk 0:00:33]} 29. Rxc2 {[%clk 0:00:51]}  Be6 {[%clk 0:00:27]} 30. Nd1 {[%clk 0:00:48]}  Kg7 {[%clk 0:00:22]} 31. Nc3 {[%clk 0:00:47]}  Bc4 {[%clk 0:00:20]} 32. Bxc4 {[%clk 0:00:46]}  bxc4 {[%clk 0:00:20]} 33. a4 {[%clk 0:00:38]}  Qe5 {[%clk 0:00:20]} 34. a5 {[%clk 0:00:36]}  e6 {[%clk 0:00:17]} 35. a6 {[%clk 0:00:34]}  Qd4 {[%clk 0:00:17]} 36. Nb5 {[%clk 0:00:25]}  Qb6 {[%clk 0:00:16]} 37. a7 {[%clk 0:00:25]}  c3 {[%clk 0:00:13]} 38. a8=Q {[%clk 0:00:24]}  Qxb5 {[%clk 0:00:12]} 39. Rxc3 {[%clk 0:00:24]}  Qxb4+ {[%clk 0:00:12]} 40. Kc2 {[%clk 0:00:24]}  Qd4 {[%clk 0:00:12]} 41. Qa6 {[%clk 0:00:24]}  Qf2+ {[%clk 0:00:12]} 42. Kb3 {[%clk 0:00:24]}  Qe1 {[%clk 0:00:11]} 43. Qxd6 {[%clk 0:00:23]}  Qb1+ {[%clk 0:00:11]} 44. Kc4 {[%clk 0:00:24]}  Qa2+ {[%clk 0:00:12]} 45. Kd3 {[%clk 0:00:23]}  Qb1+ {[%clk 0:00:11]} 46. Kd2 {[%clk 0:00:21]}  Qb2+ {[%clk 0:00:11]} 47. Rc2 {[%clk 0:00:21]}  Qf6 {[%clk 0:00:11]} 48. Qd3 {[%clk 0:00:20]}  Qf4+ {[%clk 0:00:11]} 49. Ke2 {[%clk 0:00:20]}  Qg3 {[%clk 0:00:11]} 50. Kf1 {[%clk 0:00:19]}  Qh2 {[%clk 0:00:10]} 51. Kf2 {[%clk 0:00:18]}  Qh1 {[%clk 0:00:10]} 52. Qd4+ {[%clk 0:00:18]}  f6 {[%clk 0:00:10]} 53. Rc7+ {[%clk 0:00:18]} 1-0


[Site "https://www.chess.com"]

[Event "Titled Tuesday Blitz July 20 2021"]
[White "Przybylski, Wojciech"]
[Black "DieHardCuban"]
[WhiteFideId "1117599"]
[WhiteElo "2317"]
[BlackElo "2455"]
[Result "0-1"]
[Round "08"]
[TimeControl "180+1"]
[Date "2021.07.21"]
[WhiteClock "0:00:05"]
[BlackClock "0:00:02"]

1. e4 {[%clk 0:03:00]}  c5 {[%clk 0:02:59]} 2. Nf3 {[%clk 0:02:59]}  d6 {[%clk 0:02:59]} 3. d4 {[%clk 0:02:59]}  cxd4 {[%clk 0:03:00]} 4. Nxd4 {[%clk 0:03:00]}  Nf6 {[%clk 0:03:01]} 5. Nc3 {[%clk 0:02:59]}  a6 {[%clk 0:03:01]} 6. Be3 {[%clk 0:02:57]}  e5 {[%clk 0:03:00]} 7. Nb3 {[%clk 0:02:56]}  Be6 {[%clk 0:03:01]} 8. f3 {[%clk 0:02:56]}  Nbd7 {[%clk 0:03:00]} 9. Qd2 {[%clk 0:02:56]}  h5 {[%clk 0:03:00]} 10. O-O-O {[%clk 0:02:55]}  b5 {[%clk 0:02:54]} 11. Nd5 {[%clk 0:02:54]}  Bxd5 {[%clk 0:02:40]} 12. exd5 {[%clk 0:02:54]}  Nb6 {[%clk 0:02:35]} 13. Bg5 {[%clk 0:02:43]}  Qc7 {[%clk 0:02:30]} 14. Bxf6 {[%clk 0:02:39]}  gxf6 {[%clk 0:02:31]} 15. Qd3 {[%clk 0:02:37]}  Na4 {[%clk 0:01:52]} 16. Kb1 {[%clk 0:02:28]}  Rc8 {[%clk 0:01:42]} 17. Qf5 {[%clk 0:02:26]}  Ke7 {[%clk 0:01:42]} 18. Nd4 {[%clk 0:02:08]}  Bg7 {[%clk 0:01:04]} 19. Nc6+ {[%clk 0:01:59]}  Kf8 {[%clk 0:01:04]} 20. c4 {[%clk 0:01:46]}  bxc4 {[%clk 0:00:57]} 21. Bxc4 {[%clk 0:01:47]}  Qb7 {[%clk 0:00:41]} 22. Rd2 {[%clk 0:01:27]}  h4 {[%clk 0:00:23]} 23. Rhd1 {[%clk 0:01:14]}  Rh6 {[%clk 0:00:19]} 24. Rc2 {[%clk 0:01:12]}  Rg6 {[%clk 0:00:19]} 25. Rd3 {[%clk 0:01:11]}  Nc5 {[%clk 0:00:18]} 26. Ra3 {[%clk 0:01:10]}  Ra8 {[%clk 0:00:16]} 27. b4 {[%clk 0:00:54]}  Rg5 {[%clk 0:00:16]} 28. Qh3 {[%clk 0:00:52]}  f5 {[%clk 0:00:16]} 29. Qxh4 {[%clk 0:00:51]}  Rg6 {[%clk 0:00:14]} 30. Kc1 {[%clk 0:00:48]}  Nd7 {[%clk 0:00:09]} 31. Qe7+ {[%clk 0:00:41]}  Kg8 {[%clk 0:00:09]} 32. Nd8 {[%clk 0:00:33]}  Rxd8 {[%clk 0:00:05]} 33. Qxd8+ {[%clk 0:00:34]}  Kh7 {[%clk 0:00:04]} 34. Rb3 {[%clk 0:00:28]}  e4 {[%clk 0:00:04]} 35. fxe4 {[%clk 0:00:23]}  Bh6+ {[%clk 0:00:03]} 36. Kb1 {[%clk 0:00:22]}  Ne5 {[%clk 0:00:03]} 37. exf5 {[%clk 0:00:20]}  Rg7 {[%clk 0:00:02]} 38. f6 {[%clk 0:00:19]}  Rg6 {[%clk 0:00:01]} 39. Qe7 {[%clk 0:00:16]}  Qb6 {[%clk 0:00:01]} 40. a4 {[%clk 0:00:14]}  Qg1+ {[%clk 0:00:01]} 41. Ka2 {[%clk 0:00:14]}  Qd4 {[%clk 0:00:02]} 42. Bxa6 {[%clk 0:00:10]}  Qxd5 {[%clk 0:00:02]} 43. Bb7 {[%clk 0:00:06]}  Qd4 {[%clk 0:00:01]} 44. a5 {[%clk 0:00:06]}  Bg5 {[%clk 0:00:02]} 45. a6 {[%clk 0:00:06]}  Bxf6 {[%clk 0:00:02]} 46. Qc7 {[%clk 0:00:05]}  Nd7 {[%clk 0:00:02]} 47. Qa5 {[%clk 0:00:05]}  Qa1# {[%clk 0:00:02]} 0-1


[Site "https://www.chess.com"]